Cogmind - Beta 12 @@@ ROGUE MODE // 2024.02.03 @ 14:37:11 Player: SURFACESEEKER Result: Destroyed by S-43 Plague with Heavy Machine Gun Performance ------------- Evolutions (7) 3500 Regions Visited (14) 2800 Robots Destroyed (134) 670 Value Destroyed (4967) 4967 Prototype IDs (16) 320 Alien Tech Used (0) 0 Bonus (1988) 1988 TOTAL SCORE: 14245 Bonus ------- Follower Combat Kills 1315 Entered DSFs 500 Met Data Miner 300 Friendly Fire -127 Cogmind --------- Core Integrity 0/1300 Matter 154/300 Energy 57/100 System Corruption 28% Temperature Cool (0) Movement Core (50) Location -3/Research Parts ------- > --- POWER (3) -------- (None) > --- PROPULSION (6) --- (None) > --- UTILITY (7) ------ (None) > --- WEAPON (5) ------- (None) > --- INVENTORY (5) ---- Advanced Heat Sink High-capacity Storage Unit High-capacity Storage Unit Advanced Drone Bay (2/2) Peak State ------------ > --- POWER ------------ Neutrino Core Antimatter Reactor Micro Antimatter Reactor > --- PROPULSION ------- Combat Gravmag System Combat Gravmag System Combat Gravmag System Combat Gravmag System Combat Gravmag System Combat Gravmag System > --- UTILITY ---------- Advanced Heat Sink Large Storage Unit High-capacity Storage Unit Advanced Terrain Scanner Terrain Scan Processor Advanced Targeting Computer Improved System Restoration Module > --- WEAPON ----------- Gamma Rifle Field Laser Coil Gun Advanced Remote Datajack > --- INVENTORY -------- Neutrino Core Combat Gravmag System Combat Gravmag System Improved Antigrav System Improved Antigrav System Advanced Heat Sink Advanced Heat Sink Advanced Heat Sink High-capacity Storage Unit High-capacity Storage Unit High-capacity Storage Unit Improved Trap Scanner Improved Sensor Array Transmission Jammer Advanced Drone Bay Field Laser Plasma Rifle Power Maul [Rating: 111] Favorites ----------- Power Improved Deuterium Engine Engine Improved Deuterium Engine Power Core Light Nuclear Core Reactor Antimatter Reactor Propulsion Combat Gravmag System Treads Heavy Treads Leg Carbon-fiber Leg Wheel Wheel Hover Unit Combat Gravmag System Utility Large Storage Unit Device Improved Sensor Array Storage Large Storage Unit Processor Terrain Scan Processor Protection Insulated Plating Weapon Coil Gun Energy Gun Pulse Rifle Energy Cannon Particle Cannon Ballistic Gun Coil Gun Ballistic Cannon Gauss Cannon Launcher Mini Grenade Launcher Special Weapon Advanced Remote Datajack Impact Weapon Power Maul Slashing Weapon Ripper Build | -11 -10 -9 -8 -7 -7 -7 -6 -6 -6 -6 -6 -5 -4 -3 ------- Run | Jun Mat Mat Mat Fac Low Dat Pro Fac Was Fac DSF Fac Fac Res Slots Evolved 14 | . . 2 2 2 . . . 2 . . . 2 2 2 Power 2 | . . . . 1 . . . . . . . . 1 . Propulsion 4 | . . . 2 . . . . . . . . 1 1 . Utility 5 | . . 2 . . . . . 1 . . . 1 . 1 Weapon 3 | . . . . 1 . . . 1 . . . . . 1 Parts Attached 256 | 9 . 27 20 22 21 . 8 61 7 . 7 6 4 64 Power 30 | 1 . 2 1 6 4 . 1 6 1 . . . 1 7 Engine 17 | 1 . 2 1 4 3 . . 4 . . . . 1 1 Core 8 | . . . . 2 1 . 1 2 . . . . . 2 Reactor 5 | . . . . . . . . . 1 . . . . 4 Propulsion 61 | 4 . 4 7 9 6 . . 10 2 . 4 3 1 11 Treads 5 | 2 . . . . 1 . . . 2 . . . . . Leg 22 | 2 . 4 6 5 4 . . 1 . . . . . . Wheel 13 | . . . 1 4 1 . . 7 . . . . . . Hover 21 | . . . . . . . . 2 . . 4 3 1 11 Flight . | . . . . . . . . . . . . . . . Utility 104 | 2 . 11 5 1 7 . 6 31 3 . 3 2 1 32 Device 71 | 2 . 2 2 1 3 . 5 23 1 . 3 2 1 26 Storage 15 | . . 8 . . 2 . . 2 2 . . . . 1 Processor 6 | . . . 1 . . . . 3 . . . . . 2 Hackware . | . . . . . . . . . . . . . . . Protection 12 | . . 1 2 . 2 . 1 3 . . . . . 3 Artifact . | . . . . . . . . . . . . . . . Weapon 61 | 2 . 10 7 6 4 . 1 14 1 . . 1 1 14 Energy Gun 27 | . . 6 5 2 . . 1 6 . . . . . 7 Energy Cannon 7 | . . 3 1 . 2 . . 1 . . . . . . Ballistic Gun 18 | 2 . . 1 3 2 . . 5 . . . . 1 4 Ballistic Cannon 2 | . . . . . . . . . . . . 1 . 1 Launcher 1 | . . 1 . . . . . . . . . . . . Special Weapon 1 | . . . . . . . . . . . . . . 1 Impact Weapon 4 | . . . . 1 . . . 1 1 . . . . 1 Slashing Weapon 1 | . . . . . . . . 1 . . . . . . Piercing Weapon . | . . . . . . . . . . . . . . . Special Melee Weapon . | . . . . . . . . . . . . . . . Unidentified Prototypes 6 | . . 3 . . . . . 1 . . . . . 2 Corrupted Parts 2 | . . . 1 . . . . . . . . . . 1 System Corruption 6 | . . . 5 . . . . . . . . . . 1 Parts Lost 104 | . . 7 8 20 8 . 2 18 . . . . . 41 Power 17 | . . . 1 3 1 . . 4 . . . . . 8 Propulsion 35 | . . 3 3 9 5 . 1 4 . . . . . 10 Utility 20 | . . 2 . 2 1 . 1 5 . . . . . 9 Weapon 32 | . . 2 4 6 1 . . 5 . . . . . 14 Highest Loss Streak 14 | . . 5 8 14 5 . 1 13 . . . . . 9 To Critical Strikes . | . . . . . . . . . . . . . . . Average Slot Usage (%) 91 | . 100 98 94 90 94 92 92 86 88 80 92 98 94 87 Engine 6 | . 14 11 9 8 6 7 7 6 . . . . 4 1 Core 4 | . . . . 5 7 7 7 5 6 6 6 5 5 4 Reactor 1 | . . . . . . . . . 5 6 6 5 5 3 Leg 13 | . 28 21 32 23 9 23 23 11 . . . . . . Wheel 2 | . . . . 2 16 7 1 2 14 . . . . . Hover 6 | . . . . . . . . . . . 12 29 31 27 Device 12 | . 28 17 12 6 7 7 13 12 6 6 12 15 11 12 Storage 14 | . . 22 18 15 15 15 15 13 13 13 13 11 10 9 Processor 3 | . . . 2 7 . . . 5 6 6 6 5 5 7 Protection 1 | . . 4 1 . 4 . . 1 . . . . . . Energy Gun 4 | . . 9 9 . . . 3 8 . . . . . 3 Energy Cannon 3 | . . 3 3 6 5 7 7 3 . . . . . . Ballistic Gun 9 | . 28 8 4 11 8 7 7 6 23 20 20 16 11 9 Impact Weapon 2 | . . . . . 7 7 3 3 2 6 6 5 3 . Naked Turns 15 | . . . . . . . . . . . . . . 15 Heaviest Build 132 | 10 10 57 75 70 81 67 70 94 103 100 103 106 123 132 Greatest Support 140 | 40 20 26 48 50 46 45 45 52 140 140 140 70 84 84 Greatest Overweight (x) 20 | 2 . 4 5 20 5 1 1 8 1 . 3 1 1 4 Average Overweight (x) 1 | . . 1 1 1 1 1 1 1 . . . 1 1 . Largest Inventory Capacity 25 | 5 5 25 15 15 15 15 15 20 20 20 20 20 20 20 Average Capacity 16 | 5 5 15 15 15 15 15 15 15 20 20 20 20 20 19 Most Carried 20 | 5 5 15 15 15 15 15 15 20 20 20 20 20 20 20 Average Carried 14 | 1 4 11 13 13 13 15 14 14 19 20 19 18 18 16 Final Capacity 20 | 5 5 15 15 15 15 15 15 20 20 20 20 20 20 5 Final Carried 20 | 5 5 15 15 11 15 15 15 20 20 20 20 20 19 5 Class Distribution -------------------- 39% | Scavenger-Mutant 24% | Scavenger-Skirmisher 20% | Mutant 5% | Scavenger-Gunner 4% | Scavenger-Assassin Dominant Class ---------------- Mutant | -10/Materials Mutant | -9/Materials Mutant | -8/Materials Scavenger-Skirmisher | -7/Factory Scavenger-Mutant | -7/Lower Caves Scavenger-Mutant | -7/Data Miner Scavenger-Mutant | -6/Proximity Caves Scavenger-Skirmisher | -6/Factory Scavenger-Mutant | -6/Waste Scavenger-Mutant | -6/Factory Scavenger-Assassin | -6/DSF Assassin | -5/Factory Scavenger-Gunner | -4/Factory Scavenger-Skirmisher | -3/Research Resources | -11 -10 -9 -8 -7 -7 -7 -6 -6 -6 -6 -6 -5 -4 -3 ----------- Run | Jun Mat Mat Mat Fac Low Dat Pro Fac Was Fac DSF Fac Fac Res Matter Collected 4205 | 314 26 313 336 392 272 . 117 797 193 . 94 50 149 1152 Remotely . | . . . . . . . . . . . . . . . Salvage Created 6178 | 139 . 687 595 922 265 . 133 1427 312 . 84 . 49 1565 Parts 304 | 8 . 36 50 59 13 . 7 58 . . 3 . . 70 Haulers Intercepted 4 | . . 2 . . . . . 1 . . 1 . . . Recyclers Shooed 11 | . . 3 . . . . . 7 . . . . 1 . Parts Field Recycled . | . . . . . . . . . . . . . . . Retrieved Matter . | . . . . . . . . . . . . . . . Parts Self-Destructed 28 | . . . . . 14 . 14 . . . . . . . Prevented 1 | . . . . . 1 . . . . . . . . . Kills | -11 -10 -9 -8 -7 -7 -7 -6 -6 -6 -6 -6 -5 -4 -3 ------- Run | Jun Mat Mat Mat Fac Low Dat Pro Fac Was Fac DSF Fac Fac Res Combat Hostiles Destroyed 98 | . . 15 13 15 8 . 5 16 . . . . 1 25 Melee 7 | . . . . . 1 . . 2 . . . . . 4 Guns 59 | . . 10 10 8 5 . 3 6 . . . . . 17 Cannons 18 | . . 3 3 5 2 . 2 . . . . . 1 2 AOE 7 | . . 2 . 1 . . . 3 . . . . . 1 Classes Destroyed 15 | 3 . 6 2 2 . . . 1 . . . . . 1 Worker 9 | 1 . . . 3 . . . 5 . . . . . . Builder 7 | . . . 3 1 . . . 2 . . . . . 1 Tunneler 4 | 1 . . 1 1 . . . . . . . . . 1 Hauler 4 | . . 2 . . . . . 1 . . 1 . . . Recycler 7 | 1 . . . 2 . . . 4 . . . . . . Watcher 5 | . . 1 2 . . . . 2 . . . . . . Swarmer 34 | . . 3 7 3 5 . 4 6 . . . . . 6 Grunt 29 | . . 7 5 6 . . . 5 . . . . . 6 Brawler 2 | . . 1 . . . . . 1 . . . . . . Duelist 1 | . . . . . . . . 1 . . . . . . Sentry 11 | . . 4 . 4 . . . . . . . . 1 2 Specialist 1 | . . . . . . . . . . . . . . 1 Hunter 4 | . . . . 1 2 . . 1 . . . . . . Programmer 15 | . . . . 1 1 . 1 2 . . . . . 10 Heavy 1 | . . . 1 . . . . . . . . . . . Best Kill Streak 15 | 1 . 5 5 12 3 . 3 15 . . 1 . 1 4 Combat Bots Only 7 | . . 5 4 7 3 . 3 3 . . . . 1 4 Max Kills in Single Turn 5 | 1 . 2 3 2 1 . 1 5 . . 1 . 1 2 Gunslinging 1 | . . . 1 . . . . . . . . . . . Exploded 3 | . . 1 . 1 . . . 3 . . . . . 1 Melee 1 | . . . . . 1 . . 1 . . . . . 1 Uniques/NPCs Destroyed . | . . . . . . . . . . . . . . . Combat | -11 -10 -9 -8 -7 -7 -7 -6 -6 -6 -6 -6 -5 -4 -3 -------- Run | Jun Mat Mat Mat Fac Low Dat Pro Fac Was Fac DSF Fac Fac Res Damage Taken 13911 | . . 1059 1224 1690 1100 . 200 2334 . . . . 158 6146 Core 2588 | . . 193 109 275 169 . . 542 . . . . . 1300 Absorbed by Shields 556 | . . . . . . . . . . . . . . 556 Redirected to Shielding 8 | . . 8 . . . . . . . . . . . . Regen/Repaired (Parts) 305 | . . . . . . . . . 251 . . . 6 48 Core Remaining (%) 75 | 100 100 51 80 . . . 36 . . . 36 100 100 . Volleys Fired 371 | 13 . 65 51 49 23 . 10 52 . . 2 . 7 99 Largest 5 | 2 . 2 2 3 2 . 3 4 . . 3 . 4 5 Hottest 306 | 40 . 136 93 176 133 . 151 189 . . 90 . 138 306 Shots Fired 826 | 26 . 119 94 116 37 . 25 114 3 . 6 . 28 258 Gun 684 | 26 . 95 80 79 23 . 15 107 3 . 6 . 21 229 Cannon 133 | . . 21 14 37 14 . 10 7 . . . . 7 23 Launcher 3 | . . 3 . . . . . . . . . . . . Special 6 | . . . . . . . . . . . . . . 6 Kinetic 456 | 26 . 80 14 61 23 . 10 40 3 . 6 . 28 165 Thermal 250 | . . 31 14 44 14 . 15 74 . . . . . 58 Explosive 3 | . . 3 . . . . . . . . . . . . Electromagnetic 111 | . . 5 66 11 . . . . . . . . . 29 Robot Hit Streak 16 | 3 . 10 9 13 6 . 7 13 5 . 5 . 11 16 Robot Miss Streak 8 | 3 . 4 4 8 2 . 3 7 2 . 3 . 5 6 Penetration Max 1 | . . . . 1 . . . 1 . . . . . 1 Secondary Targets 8 | . . 1 2 . 1 . . 3 . . . . . 1 Max Gunslinging Chain 1 | . . 1 1 . 1 . . 1 . . . . . 1 Shots Hit Robots 534 | 12 . 78 54 70 29 . 15 85 4 . 5 . 16 166 Core Hits 242 | 6 . 37 28 42 14 . 8 40 1 . 2 . 2 62 Critical Kills 8 | . . . . . 1 . . 3 . . . . . 4 Critical Parts Destroyed 10 | . . . . 1 2 . . 1 . . . . . 6 Critical Strikes 31 | . . 1 3 1 3 . . 10 1 . . . . 12 Burn 8 | . . 1 . . . . . 6 . . . . . 1 Destroy 8 | . . . . . . . . 3 . . . . . 5 Blast 1 | . . . . . . . . . . . . . . 1 Corrupt 3 | . . . 3 . . . . . . . . . . . Smash 11 | . . . . 1 3 . . 1 1 . . . . 5 Melee Attacks 52 | . . . . 1 8 . . 19 3 . . . . 21 Impact 51 | . . . . 1 8 . . 18 3 . . . . 21 Slashing 1 | . . . . . . . . 1 . . . . . . Piercing . | . . . . . . . . . . . . . . . Sneak Attacks 3 | . . . . . . . . 3 . . . . . . Combat Hostiles . | . . . . . . . . . . . . . . . Follow-up Attacks . | . . . . . . . . . . . . . . . Damage Inflicted 13637 | 133 . 1155 1261 1603 728 . 285 2814 333 . 106 . 398 4821 Guns 8342 | 132 . 727 805 959 222 . 136 1470 75 . 106 . 243 3467 Cannons 1717 | . . 142 80 448 245 . 149 87 . . . . 155 411 Explosions 1522 | . . 266 371 101 . . . 522 . . . . . 262 Melee 1914 | . . . . 38 261 . . 735 258 . . . . 622 Ramming 142 | 1 . 20 5 57 . . . . . . . . . 59 Kinetic 5740 | 132 . 622 83 786 222 . 64 538 75 . 106 . 398 2714 Thermal 4438 | . . 294 451 669 245 . 221 1541 . . . . . 1017 Explosive 164 | . . 164 . . . . . . . . . . . . Electromagnetic 1239 | . . 55 722 53 . . . . . . . . . 409 Impact 1914 | . . . . 38 261 . . 735 258 . . . . 622 Slashing . | . . . . . . . . . . . . . . . Piercing . | . . . . . . . . . . . . . . . Highest Corruption 28 | . . . 5 1 3 . 1 10 10 10 10 . . 28 Average Corruption 4 | . . . 5 1 1 . 1 9 10 10 10 . . 6 Corruption Purged 10 | . . . . . 3 . . . . . . . . 7 Corruption Blocked . | . . . . . . . . . . . . . . . Effects 127 | . . . 17 2 6 . 9 31 25 1 8 . . 28 Message Errors 32 | . . . 5 . 2 . 1 7 10 1 3 . . 3 Matter Fused 26 | . . . 6 1 1 . 1 8 2 . . . . 7 Heat Flow Errors 15 | . . . . 1 . . 2 6 2 . 3 . . 1 Energy Discharges 12 | . . . 1 . 1 . 2 2 2 . . . . 4 Parts Rejected 2 | . . . 1 . . . . . . . . . . 1 Parts Fused 3 | . . . . . . . . . 1 . 1 . . 1 Data Loss (minor) 12 | . . . 1 . 1 . 1 1 3 . 1 . . 4 Data Loss (major) 7 | . . . 1 . . . 2 1 2 . . . . 1 Misfires 10 | . . . 1 . . . . 4 3 . . . . 2 Alerts 2 | . . . . . . . . 2 . . . . . . Misdirections 3 | . . . . . . . . . . . . . . 3 Weapon Failures 3 | . . . 1 . 1 . . . . . . . . 1 Overload Shots . | . . . . . . . . . . . . . . . Overflow Damage 754 | . . . 19 52 113 . . 238 77 . . . 2 253 Projectiles 15 | . . . . . 13 . . . . . . . 2 . Explosions 191 | . . . 19 11 . . . 128 . . . . . 33 Melee 548 | . . . . 41 100 . . 110 77 . . . . 220 Knockbacks 15 | . . . . . 2 . . 3 . . . . . 10 Impact 10 | . . . . . 2 . . 3 . . . . . 5 Kinetic 4 | . . . . . . . . . . . . . . 4 Secondary 1 | . . . . . . . . . . . . . . 1 Self-Inflicted Damage 179 | . . 70 42 40 . . . . . . . . . 27 Shots 6 | . . 3 2 1 . . . . . . . . . . Rammed 8 | . . . . . . . . . . . . . . 8 Targets Rammed 19 | 1 . 2 1 7 . . . . . . . . . 8 Kicked 11 | 1 . 2 1 7 . . . . . . . . . . Crushed . | . . . . . . . . . . . . . . . Highest Temperature 1096 | . . 120 104 473 405 . 423 1096 179 . 269 . 159 549 Average Temperature 147 | . . 23 25 172 122 . 132 275 95 . 159 . 74 106 Received Heat Transfer 2085 | . . 411 378 387 . . . 513 . . . . . 396 Effects 89 | . . . . 12 1 . 3 54 . . . . . 19 Shutdowns 31 | . . . . 2 1 . 2 13 . . . . . 13 Energy Bleed 10 | . . . . 2 . . . 8 . . . . . . Interference 11 | . . . . 3 . . . 5 . . . . . 3 Matter Decay 8 | . . . . . . . . 7 . . . . . 1 Short Circuit 5 | . . . . 1 . . . 3 . . . . . 1 Damage (minor) 6 | . . . . . . . 1 4 . . . . . 1 Damage (major) 16 | . . . . 4 . . . 12 . . . . . . Damage (core) 2 | . . . . . . . . 2 . . . . . . Siege Activations . | . . . . . . . . . . . . . . . Robots Corrupted . | . . . . . . . . . . . . . . . Combat Hostiles . | . . . . . . . . . . . . . . . Parts Fried 25 | . . . 9 3 . . . 8 1 . . . . 4 Impact Corruptions 21 | . . . . 2 3 . . 7 2 . . . . 7 Robots Melted 2 | . . . . . . . . 2 . . . . . . Combat Hostiles 2 | . . . . . . . . 2 . . . . . . Parts Melted 22 | . . . 2 4 1 . . 6 . . . . . 9 Heat Transferred 7734 | . . 631 648 1102 333 . 407 2903 . . . . . 1710 Parts Sabotaged . | . . . . . . . . . . . . . . . Parts Stolen . | . . . . . . . . . . . . . . . Parts Stripped . | . . . . . . . . . . . . . . . Power Chain Reactions 6 | . . 2 2 1 . . . . . . . . . 1 Missiles Intercepted . | . . . . . . . . . . . . . . . Alert | -11 -10 -9 -8 -7 -7 -7 -6 -6 -6 -6 -6 -5 -4 -3 ------- Run | Jun Mat Mat Mat Fac Low Dat Pro Fac Was Fac DSF Fac Fac Res Peak Influence 597 | 15 9 218 242 198 . . . 467 147 5 353 597 331 373 Initial 304 | . 9 3 24 52 . . . 304 147 . 3 184 291 108 Average 158 | 9 9 117 82 84 . . . 183 80 2 231 351 206 224 Maximum Alert Level 2 | . . 1 1 . . . . 2 . . 1 2 1 1 Low Security (%) 72 | 100 100 92 98 100 . . . 68 100 100 31 44 50 37 Level 1 22 | . . 7 1 . . . . 16 . . 68 26 50 62 Level 2 4 | . . . . . . . . 14 . . . 28 . . Level 3 . | . . . . . . . . . . . . . . . Level 4 . | . . . . . . . . . . . . . . . Level 5 . | . . . . . . . . . . . . . . . High Security . | . . . . . . . . . . . . . . . Max Security . | . . . . . . . . . . . . . . . Sterilizations 1 | . . . . . . . . . . . 1 . . . Squads Dispatched 38 | . . 3 3 8 . . . 8 . . 2 . 4 10 Investigation 3 | . . 2 1 . . . . . . . . . . . Extermination 10 | . . . . 1 . . . 2 . . . . 2 5 Reinforcement 16 | . . 1 2 2 . . . 3 . . 2 . 2 4 Assault 1 | . . . . . . . . 1 . . . . . . Garrison 8 | . . . . 5 . . . 2 . . . . . 1 Intercept . | . . . . . . . . . . . . . . . Searches Triggered . | . . . . . . . . . . . . . . . Data Miner Redirects 1 | . . . . . . . . 1 . . . . . . Construction Impeded 1 | . . . . . . . . . . . . . 1 . Haulers Reinforced 1 | . . . . . . . . 1 . . . . . . Active Scanning Responses . | . . . . . . . . . . . . . . . Cargo Convoy Interrupts 1 | . . . . . . . . 1 . . . . . . Stealth | -11 -10 -9 -8 -7 -7 -7 -6 -6 -6 -6 -6 -5 -4 -3 --------- Run | Jun Mat Mat Mat Fac Low Dat Pro Fac Was Fac DSF Fac Fac Res Distress Signals 8 | . . 2 4 1 . . . 1 . . . . . . Communications Jammed 2 | . . . . . . . 1 1 . . . . . . Distress Signals 1 | . . . . . . . . 1 . . . . . . Times Spotted 200 | . 1 23 26 37 10 . 8 26 . . 3 4 9 53 Peak Tracking Total 10 | . 2 7 6 8 4 . 4 5 . . 1 1 4 10 Tactical Retreats 20 | . . 2 7 2 1 . . 2 . . . . . 6 Traps | -11 -10 -9 -8 -7 -7 -7 -6 -6 -6 -6 -6 -5 -4 -3 ------- Run | Jun Mat Mat Mat Fac Low Dat Pro Fac Was Fac DSF Fac Fac Res Traps Triggered 3 | . . . . . . . . 1 . . . . . 2 Indirectly . | . . . . . . . . . . . . . . . Trap Hack Attempts . | . . . . . . . . . . . . . . . Triggered . | . . . . . . . . . . . . . . . Disarmed . | . . . . . . . . . . . . . . . Reprogrammed . | . . . . . . . . . . . . . . . Reused . | . . . . . . . . . . . . . . . Traps Extracted . | . . . . . . . . . . . . . . . Installed . | . . . . . . . . . . . . . . . Triggered 4 | . . 1 . . 2 . . 1 . . . . . . Machines | -11 -10 -9 -8 -7 -7 -7 -6 -6 -6 -6 -6 -5 -4 -3 ---------- Run | Jun Mat Mat Mat Fac Low Dat Pro Fac Was Fac DSF Fac Fac Res Machines Disabled 12 | . . 2 . . . . . 7 . . . . . 3 Max in Single Turn 7 | . . 1 . . . . . 7 . . . . . 1 Garrison Access 1 | . . . . . . . . 1 . . . . . . Machines Repaired . | . . . . . . . . . . . . . . . Machines Sabotaged . | . . . . . . . . . . . . . . . Overloaded Fab Kills . | . . . . . . . . . . . . . . . Hacking | -11 -10 -9 -8 -7 -7 -7 -6 -6 -6 -6 -6 -5 -4 -3 --------- Run | Jun Mat Mat Mat Fac Low Dat Pro Fac Was Fac DSF Fac Fac Res Machines Accessed 14 | . 1 3 2 2 . 4 . 1 . 1 . . . . Terminals 9 | . 1 3 1 2 . . . 1 . 1 . . . . Fabricators . | . . . . . . . . . . . . . . . Repair Stations . | . . . . . . . . . . . . . . . Recycling Units . | . . . . . . . . . . . . . . . Scanalyzers 1 | . . . 1 . . . . . . . . . . . Garrison Access . | . . . . . . . . . . . . . . . Total Hacks 54 | . 1 8 5 7 . 30 . 1 . 2 . . . . Successful 46 | . . 8 3 3 . 30 . 1 . 1 . . . . Failed 8 | . 1 . 2 4 . . . . . 1 . . . . Catastrophic . | . . . . . . . . . . . . . . . Database Lockouts . | . . . . . . . . . . . . . . . Manual 11 | . . 4 1 2 . . . 4 . . . . . . Terminals 21 | . 1 8 2 7 . . . 1 . 2 . . . . Fabricators . | . . . . . . . . . . . . . . . Repair Stations . | . . . . . . . . . . . . . . . Recycling Units . | . . . . . . . . . . . . . . . Scanalyzers 3 | . . . 3 . . . . . . . . . . . Garrison Access . | . . . . . . . . . . . . . . . Terminal Hacks 38 | . . 5 1 1 . 30 . . . 1 . . . . Record 14 | . . 2 . 1 . 11 . . . . . . . . Part Schematic 11 | . . . . . . 11 . . . . . . . . Robot Schematic 5 | . . . . . . 5 . . . . . . . . Prototype ID Bank 3 | . . . . . . 3 . . . . . . . . Open DSF 1 | . . . . . . . . . . 1 . . . . Alert Level 1 | . . . 1 . . . . . . . . . . . Dispatch Records 1 | . . 1 . . . . . . . . . . . . Hauler Manifests 1 | . . 1 . . . . . . . . . . . . Zone Layout 1 | . . 1 . . . . . . . . . . . . Fabricator Hacks . | . . . . . . . . . . . . . . . Repair Station Hacks . | . . . . . . . . . . . . . . . Recycling Unit Hacks . | . . . . . . . . . . . . . . . Scanalyzer 1 | . . . 1 . . . . . . . . . . . Insert Component 1 | . . . 1 . . . . . . . . . . . Garrison Access Hacks . | . . . . . . . . . . . . . . . Unauthorized Hacks 6 | . . 2 1 2 . . . 1 . . . . . . Terminals 6 | . . 2 1 2 . . . 1 . . . . . . Track 5 | . . 2 1 2 . . . . . . . . . . Operators 1 | . . . . . . . . 1 . . . . . . Fabricators . | . . . . . . . . . . . . . . . Repair Stations . | . . . . . . . . . . . . . . . Recycling Units . | . . . . . . . . . . . . . . . Scanalyzers . | . . . . . . . . . . . . . . . Garrison Access . | . . . . . . . . . . . . . . . Data Cores Recovered . | . . . . . . . . . . . . . . . Used . | . . . . . . . . . . . . . . . Hacking Detections 9 | . 1 3 2 1 . . . 2 . . . . . . Full Trace Events 1 | . . 1 . . . . . . . . . . . . Feedback Events . | . . . . . . . . . . . . . . . Feedback Blocked . | . . . . . . . . . . . . . . . Robot Schematics Acquired 5 | . . . . . . 5 . . . . . . . . Robots Built . | . . . . . . . . . . . . . . . Authchips . | . . . . . . . . . . . . . . . Time . | . . . . . . . . . . . . . . . Total Robot Build Rating . | . . . . . . . . . . . . . . . Part Schematics Acquired 11 | . . . . . . 11 . . . . . . . . Parts Built . | . . . . . . . . . . . . . . . Authchips . | . . . . . . . . . . . . . . . Time . | . . . . . . . . . . . . . . . Total Part Build Rating . | . . . . . . . . . . . . . . . Parts Repaired . | . . . . . . . . . . . . . . . Time . | . . . . . . . . . . . . . . . Parts Recycled . | . . . . . . . . . . . . . . . Recycled Matter . | . . . . . . . . . . . . . . . Retrieved Matter . | . . . . . . . . . . . . . . . Retrieved Components . | . . . . . . . . . . . . . . . Parts Scanalyzed 1 | . . . 1 . . . . . . . . . . . Part Schematics Acquired . | . . . . . . . . . . . . . . . Parts Damaged . | . . . . . . . . . . . . . . . Bothacking | -11 -10 -9 -8 -7 -7 -7 -6 -6 -6 -6 -6 -5 -4 -3 ------------ Run | Jun Mat Mat Mat Fac Low Dat Pro Fac Was Fac DSF Fac Fac Res Used RIF Installer . | . . . . . . . . . . . . . . . Robots Hacked 1 | . . . . . . . . . . . . . . 1 Non-combat 1 | . . . . . . . . . . . . . . 1 Combat . | . . . . . . . . . . . . . . . Robot Hacks Applied 2 | . . . . . . . . . . . . . . 2 parse_system 1 | . . . . . . . . . . . . . . 1 no_distress 1 | . . . . . . . . . . . . . . 1 Relay Couplers Released 2 | . . . . . . . . 2 . . . . . . Machine Destruction 2 | . . . . . . . . 2 . . . . . . Fabnet Peak Effective % . | . . . . . . . . . . . . . . . Robots Rewired . | . . . . . . . . . . . . . . . Allies Hacked 1 | . . . . . . . . . . . . . 1 . Hacks Repelled . | . . . . . . . . . . . . . . . Allies | -11 -10 -9 -8 -7 -7 -7 -6 -6 -6 -6 -6 -5 -4 -3 -------- Run | Jun Mat Mat Mat Fac Low Dat Pro Fac Was Fac DSF Fac Fac Res Total Allies 21 | . . . . . . . 1 . 20 . . . . . Largest Group 20 | . . . . . . . 1 . 20 20 20 18 18 6 Highest-Rated Group 773 | . . . . . . . 96 . 773 773 773 694 694 221 Highest-Rated Ally 96 | . . . . . . . 96 . 46 46 46 46 46 46 Total Orders 11 | . . . . . . . . . . . . . 9 2 EXPLORE 11 | . . . . . . . . . . . . . 9 2 Ally Attacks 290 | . . . . . . . 18 . . . 90 43 90 49 Total Damage 6143 | . . . . . . . 432 . . . 1801 852 1932 1126 Kills 45 | . . . . . . . 6 . . . 8 11 13 7 Allies Corrupted 1 | . . . . . . . . . . . . . 1 . Allies Melted 1 | . . . . . . . . . . . . . . 1 Intel | -11 -10 -9 -8 -7 -7 -7 -6 -6 -6 -6 -6 -5 -4 -3 ------- Run | Jun Mat Mat Mat Fac Low Dat Pro Fac Was Fac DSF Fac Fac Res Robot Analysis Total . | . . . . . . . . . . . . . . . Derelict Logs Recovered 4 | . . . . . 2 . 2 . . . . . . . Drone Launches 11 | . . . . . . . . . . . . . 9 2 Drone Recoveries 11 | . . . . . . . . . . . . . 9 2 Exploration | -11 -10 -9 -8 -7 -7 -7 -6 -6 -6 -6 -6 -5 -4 -3 ------------- Run | Jun Mat Mat Mat Fac Low Dat Pro Fac Was Fac DSF Fac Fac Res Turns Passed 13176 | 210 124 1328 916 941 888 266 2180 2417 729 31 203 376 906 1661 Spaces Moved 5939 | 125 98 398 357 379 563 141 997 832 515 20 105 249 420 740 Core 31 | 7 . . . 1 . . . . . . . . . 23 Treads 225 | 14 . . . . . . . . 137 20 54 . . . Legs 3218 | 104 98 398 356 330 178 141 997 616 . . . . . . Wheels 1026 | . . . 1 48 385 . . 214 378 . . . . . Hover 1439 | . . . . . . . . 2 . . 51 249 420 717 Flight . | . . . . . . . . . . . . . . . Fastest Speed 44 | 50 120 190 155 100 95 190 190 105 105 160 141 138 135 44 Average Speed 168 | 122 120 253 191 181 134 190 190 213 120 160 158 138 135 123 Slowest Speed 1050 | 160 120 400 400 1050 190 190 190 540 240 160 287 138 135 230 Overloaded Moves . | . . . . . . . . . . . . . . . Propulsion Burnouts . | . . . . . . . . . . . . . . . Robots Hopped . | . . . . . . . . . . . . . . . Cave-ins Triggered 1 | . . . . . . . . 1 . . . . . . Exploration Rate (%) 35 | 6 28 33 28 9 50 75 77 11 94 1 85 5 16 17 Regions Visited 14 Branch Regions 3 Pre-discovered Areas 1 | . . . . . . 1 . . . . . . . . Known Exits Taken 2 | . . . . . . . 1 . . 1 . . . . Unknown Exits Taken 9 | 1 1 1 1 1 1 1 . . . . . 1 1 . Scrap Searched 8 | . . . . . 4 . 4 . . . . . . . Spaces Dug 3 | . . . . . . . . 3 . . . . . . Terrain Destroyed 88 | . . 36 7 5 1 . . 27 . . 1 . . 11 Melee 3 | . . . . . . . . 3 . . . . . . Projectile 5 | . . . . . 1 . . 2 . . 1 . . 1 AOE 77 | . . 36 7 5 . . . 21 . . . . . 8 Terrain Rammed . | . . . . . . . . . . . . . . . Walls Destroyed . | . . . . . . . . . . . . . . . Machines Disabled . | . . . . . . . . . . . . . . . Actions | -11 -10 -9 -8 -7 -7 -7 -6 -6 -6 -6 -6 -5 -4 -3 --------- Run | Jun Mat Mat Mat Fac Low Dat Pro Fac Was Fac DSF Fac Fac Res Total 8336 | 155 107 604 499 530 643 140 1261 1333 621 19 139 282 742 1261 Wait 1436 | . . 71 40 54 4 . 239 322 79 . 9 18 309 291 Move 5926 | 124 97 397 356 378 562 140 996 832 514 19 104 248 419 740 Hop . | . . . . . . . . . . . . . . . Pick Up 152 | 6 5 29 16 13 13 . 2 29 4 . 9 5 1 20 Fast Attach 64 | 8 . 1 8 8 8 . 2 13 3 . 1 1 . 11 Attach 93 | 1 . 9 8 13 8 . 2 14 . . 4 2 3 29 Detach 9 | . . . 2 . 1 . 1 . 1 . . . 2 2 Swap 99 | . . 17 4 1 5 . 4 34 4 . 2 3 1 24 Drop 102 | 2 5 13 13 6 8 . 3 18 10 . 7 5 . 12 Fire 371 | 13 . 65 51 49 23 . 10 52 . . 2 . 7 99 Melee 52 | . . . . 1 8 . . 19 3 . . . . 21 Ram 8 | . . . . . . . . . . . . . . 8 Kick 11 | 1 . 2 1 7 . . . . . . . . . . Crush . | . . . . . . . . . . . . . . . Escape Stasis 5 | . . . . . . . . . . . 1 . . 4 Rewire 8 | . . . . . 3 . 2 . 3 . . . . . Trap . | . . . . . . . . . . . . . . . Miscellaneous . | . . . . . . . . . . . . . . . Route ------- -11/Junkyard -10/Materials -9/Materials -8/Materials -7/Factory -7/Lower Caves (discovered 2 exits: Low / *Dat) -7/Data Miner -6/Proximity Caves -6/Factory -6/Waste -6/Factory -6/DSF -5/Factory -4/Factory -3/Research History --------- Turn | Location | Event 8 | -11/Junkyard | Discovered new exit (range 16) 211 | -11/Junkyard | Entered Materials 301 | -10/Materials | Build established: Mutant 328 | -10/Materials | Discovered new exit (range 5) 335 | -10/Materials | Entered another Materials area 335 | -9/Materials | Evolved 2 slots: Utility x2 864 | -9/Materials | Lost 5 parts (2n1u2w) 1589 | -9/Materials | Discovered new exit (range 16) 1663 | -9/Materials | Entered another Materials area 1663 | -8/Materials | Evolved 2 slots: Propulsion x2 2092 | -8/Materials | Lost 8 parts (1p3n4w) 2522 | -8/Materials | Discovered new exit (range 10) 2579 | -8/Materials | Entered Factory 2579 | -7/Factory | Evolved 2 slots: Power x1, Weapon x1 3022 | -7/Factory | Build established: Scavenger-Skirmisher 3053 | -7/Factory | Garrison activated, responded to threat 3353 | -7/Factory | Discovered new exit (range 14) 3368 | -7/Factory | Garrison activated, responded to threat 3454 | -7/Factory | Destroyed 7 combat bots 3464 | -7/Factory | Lost 14 parts (3p4n2u5w) 3520 | -7/Factory | Entered Lower Caves 3542 | -7/Lower Caves | Core integrity fell below 50% 3650 | -7/Lower Caves | Lost 3 parts (2n1u) 3743 | -7/Lower Caves | Build established: Scavenger-Mutant 3881 | -7/Lower Caves | Identified exit to Lower Caves 3907 | -7/Lower Caves | Learned 4 Factory zone layouts 4018 | -7/Lower Caves | Ambushed by research squad 4075 | -7/Lower Caves | Lost 5 parts (1p3n1w) 4391 | -7/Lower Caves | A Derelict revealed a hidden shortcut to meet someone special 4408 | -7/Lower Caves | Entered Data Miner 4408 | -7/Data Miner | Discovered new exit (range 6) 4445 | -7/Data Miner | Met Data Miner 4519 | -7/Data Miner | Learned location of Section 7 (-2) 4519 | -7/Data Miner | Acquired the access code to Warlord's prototype stash 4616 | -7/Data Miner | Received God Mode back door access code from Data Miner 4674 | -7/Data Miner | Entered Proximity Caves 4682 | -6/Proximity Caves | Learned Factory emergency access door positions 4998 | -6/Proximity Caves | Escorted by Enhanced Grunt 5127 | -6/Proximity Caves | Spotter reported a threat 5190 | -6/Proximity Caves | Spotter reported a threat 6011 | -6/Proximity Caves | Identified exit to Factory 6064 | -6/Proximity Caves | Build established: Scavenger-Skirmisher 6710 | -6/Proximity Caves | Build established: Scavenger-Mutant 6854 | -6/Proximity Caves | Entered Factory 6854 | -6/Factory | Evolved 2 slots: Utility x1, Weapon x1 7215 | -6/Factory | Build established: Scavenger-Skirmisher 8279 | -6/Factory | Cargo convoy interrupted 8422 | -6/Factory | Crushed by falling debris 8509 | -6/Factory | System corruption reached 10% 8818 | -6/Factory | Garrison activated, responded to threat 8881 | -6/Factory | Core integrity fell below 50% 8945 | -6/Factory | Incoming assault squad redirected 8949 | -6/Factory | Lost 13 parts (3p3n3u4w) 9271 | -6/Factory | Sucked down chute 9271 | -6/Factory | Entered Waste 9272 | -6/Waste | Joined by Warlord forces that had cleared the area 9278 | -6/Waste | Build established: Scavenger-Mutant 9678 | -6/Waste | Discovered new exit (range 13) 10000 | -6/Waste | Entered Factory 10000 | -6/Factory | Accompanied by 20 allies 10013 | -6/Factory | Identified exit to DSF 10031 | -6/Factory | Entered DSF 10031 | -6/DSF | Accompanied by 20 allies 10062 | -6/DSF | Additional patrols routed to DSF 10169 | -6/DSF | Sterilization system engaged 10189 | -6/DSF | Ambient heat levels rising (+10) 10197 | -6/DSF | Discovered new exit (range 15) 10204 | -6/DSF | Ambient heat levels rising (+10) 10219 | -6/DSF | Ambient heat levels rising (+10) 10234 | -6/DSF | Ambient heat levels rising (+10) 10234 | -6/DSF | Entered Factory 10234 | -5/Factory | Accompanied by 18 allies 10234 | -5/Factory | Evolved 2 slots: Propulsion x1, Utility x1 10429 | -5/Factory | Discovered new exit (range 7) 10610 | -5/Factory | Entered another Factory area 10610 | -4/Factory | Accompanied by 18 allies 10610 | -4/Factory | Evolved 2 slots: Power x1, Propulsion x1 10631 | -4/Factory | Build established: Assassin 11143 | -4/Factory | Build established: Scavenger-Gunner 11453 | -4/Factory | Discovered new exit (range 18) 11516 | -4/Factory | Entered Research 11516 | -3/Research | Accompanied by 6 allies 11516 | -3/Research | Evolved 2 slots: Utility x1, Weapon x1 11690 | -3/Research | Garrison activated, responded to threat 11815 | -3/Research | Build established: Scavenger-Skirmisher 12419 | -3/Research | Lost 9 parts (2p2u5w) 12638 | -3/Research | Lost 6 parts (2p1u3w) 12839 | -3/Research | Lost 6 parts (2n1u3w) 12900 | -3/Research | System corruption reached 10% 12965 | -3/Research | Lost 8 parts (3p2n2u1w) 13046 | -3/Research | Lost 3 parts (1p1n1w) 13153 | -3/Research | Core integrity fell below 50% 13171 | -3/Research | Core integrity fell below 20% 13177 | -3/Research | Destroyed by S-43 Plague with Heavy Machine Gun Last Messages --------------- 13144_ Slammed into P-80 Master. 13147_ P-80 Master resets C-35 Carver, system corruption cleaned. 13148_ P-80 Master resets P-80 Master, system corruption cleaned. 13148_ Dropped Lrg. Storage Unit. 13149_ Coolant Network destroyed. 13150_ Cld. Antigrav System severed. 13153_ Energy Well severed. 13155_ System corrupted: Matter fused (-7). 13156_ P-80 Master resets C-35 Carver, system corruption cleaned. 13157_ U-05 Engineer lays Concrete. 13158_ Cmb. Gravmag System destroyed. 13159_ U-05 Engineer lays Concrete. 13160_ P-80 Master resets C-35 Carver, system corruption cleaned. 13161_ U-05 Engineer lays Concrete. 13161_ Dropped Hcp. Storage Unit. 13161_ C-35 Carver destroyed. 13162_ U-05 Engineer lays Concrete. 13162_ U-05 Engineer destroyed. 13162_ Gyrokinetic Inverter severed. 13174_ Slammed into S-43 Plague. Map ----- +----------------------------------------------------+ | ???????????????????# # | | ????????????????! + = # | | ???????????????????# ### # | | ???????????????????# # ! !# | | ???????????????????# # !%| # | | ???????????????????# #!! # # | | ???????????????????+ =+!!% != ! # # | | ???????????????????# #!!/ ######## | | ???????????????????# # #??????? | | ???????????????????# ###########??????? | | ???????????????????# #??#####?????????? | | ???????????????????# #?? #?????????? | | ???????????????????# #? #?????????? | | ???????????????????# #? #?????????? | | ???????????????????# #[ #?????????? | | ???????????????????# # #?????????? | | ???????????????????# + #?????????? | | ???????????????????# ########?????????? | | ???????????????????# #????????????????? | | ???????????????????# #????????????????? | | ???????????????????# #????????????????? | | ???????????????????# +????????????????? | | ???????????????????# #????????????????? | | ?????? ####### #????????????????? | | ?????? k cs###########??????? | | ?????? ss@s +????? | | ?????? c###########??????? | | ?????? ###########????????????????? | | ???????# ?????????????????????????????? | | ???????? ???????????????????????????????? | | ????????????????????????????????????????? | | ????????????????????????????????????????? | | ????????????????????????????????????????? | | ????????????????????????????????????????? | | ????????????????????????????????????????? | | ????????????????????????????????????????? | | ????????????????????????????????????????? | | ????????????????????????????????????????? | | ????????????????????????????????????????? | | ????????????????????????????????????????? | | ????????????????????????????????????????? | | ????????????????????????????????????????? | | ????????????????????????????????????????? | | ????????????????????????????????????????? | | ????????????????????????????????????????? | | ????????????????????????????????????????? | | ????????????????????????????????????????? | | ????????????????????????????????????????? | | ????????????????????????????????????????? | | ????????????????????????????????????????? | +----------------------------------------------------+ Best States ------------- Heat Dissipation 136 Energy Generation 49 Energy Capacity 600 Matter Stores 300 Matter Capacity 300 Sight Range 16 Robot Scan Range 15 Terrain Scan Range 20 Terrain Scan Density 210 ECM Strength 1 Jamming Range 12 Power Amplification 30 Armor Coverage 600 Resistance: EM 20 Power Shielding 33 Phase Shifting 5 Evasion (%) 56 Targeting Accuracy 8 Recoil Reduction 4 Trap Extractor Capacity 4 Item Schematics ----------------- Combat Drone Bay | -7/Data Miner | Free Lgt. Regenerative Plating | -7/Data Miner | Free Cld. Aerolev Unit | -7/Data Miner | Free Thermal Defense Suite | -7/Data Miner | Free Shock Maul | -7/Data Miner | Free Arm. Medium Treads | -7/Data Miner | Free Imp. Shock Absorption System | -7/Data Miner | Free Lance | -7/Data Miner | Free Adv. Drone Bay | -7/Data Miner | Free Adv. Power Amplifier | -7/Data Miner | Free Antimatter Reactor | -7/Data Miner | Free Robot Schematics ------------------ M-28 Smith | -7/Data Miner | Free R-10 Processor | -7/Data Miner | Free G-47 Trooper | -7/Data Miner | Free M-22 Extractor | -7/Data Miner | Free B-60 Warrior | -7/Data Miner | Free Fabricated ------------ Nothing Alien Tech Used ----------------- None Achievements -------------- None Challenges ------------ None Game ------ Seed BottomlessVariableFlamer Manual? 0 Play Time 03:19:31 Cumulative 190.1 hours Start 2024.02.03 @ 10:21:02 End 2024.02.03 @ 14:37:11 Sessions 5 Manual Loads 0 Difficulty Rogue Special Mode None Game No. 138 Rogue 138 Adventurer 0 Explorer 0 Win Type - Total 0 Types 0/0/0/0/0/0/0/0/0 Lore% 44 Gallery% 57 Achievement% 44 Wizard Run 0 Options --------- ASCII 0 Keyboard 0 Movement Numpad Keybinds 0 Fullscreen 1 Font 16/Smallcaps Map View 112x50 Tactical HUD 1 Map Filters NONE Filters NONE Steam 1 RUN: 62c94241-adf2-4cea-9cab-cd5d0f7ead4e